bitfinex-derivatives/quotes_BTCF0:USTF0_20251207
["timestamp","ask_amount","ask_price","bid_price","bid_amount"]
[1765151658080,0.05627,90203.0,90202.0,0.0713053]
[1765151659180,0.05627,90203.0,90202.0,0.06022]
[1765151659581,0.05627,90203.0,90202.0,0.0713053]
[1765151660168,0.05627,90203.0,90202.0,0.003]
[1765151663673,0.05627,90203.0,90202.0,0.0709153]
[1765151664879,0.0673552,90203.0,90202.0,0.05983]
[1765151666482,0.0673552,90203.0,90202.0,0.003]
[1765151671576,0.0673552,90203.0,90202.0,0.05983]
[1765151671577,0.05627,90203.0,90202.0,0.05983]
[1765151672376,0.0673552,90203.0,90202.0,0.05983]
[1765151672582,0.0673552,90203.0,90202.0,0.03176]
[1765151673280,0.0673552,90203.0,90202.0,0.05983]
[1765151673585,0.05627,90203.0,90202.0,0.05983]
[1765151674783,0.05627,90203.0,90202.0,0.03176]
[1765151677289,0.05627,90203.0,90202.0,0.003]
[1765151677481,0.05627,90203.0,90202.0,0.05983]
[1765151681292,0.0673552,90203.0,90202.0,0.05983]
[1765151681985,0.05627,90203.0,90202.0,0.05983]
[1765151682388,0.02831,90203.0,90202.0,0.05983]
[1765151682986,0.05734,90203.0,90202.0,0.05983]
[1765151688203,0.001,90203.0,90202.0,0.05983]
[1765151688409,0.02992,90203.0,90202.0,0.05983]
[1765151688714,0.05895,90203.0,90202.0,0.05983]
[1765151689598,0.001,90203.0,90202.0,0.05983]
[1765151690002,0.05795,90223.0,90222.0,0.07354]
[1765151690202,0.05795,90223.0,90222.0,0.05655]
[1765151690709,0.07926369,90243.0,90222.0,0.05655]
[1765151690710,0.05978145,90236.0,90235.0,0.05655]
[1765151691013,0.0690302,90244.0,90243.0,0.05655]
[1765151691517,0.05795,90244.0,90243.0,0.05655]
[1765151691905,0.05795,90244.0,90243.0,0.0676303]
[1765151692311,0.09195,90244.0,90243.0,0.05855]
[1765151694013,0.09995,90244.0,90243.0,0.05855]
[1765151695306,0.042,90244.0,90243.0,0.05855]
[1765151696707,0.01014351,90244.0,90243.0,0.05855]
[1765151697810,0.00914351,90244.0,90243.0,0.05855]
[1765151698212,0.007,90244.0,90243.0,0.05655]
[1765151698425,0.037,90244.0,90243.0,0.05855]
[1765151702123,0.00016611,90245.0,90244.0,0.0701401]
[1765151703410,0.00016611,90245.0,90244.0,0.0861401]
[1765151703721,0.00016611,90245.0,90244.0,0.0901401]
[1765151706316,0.05696,90265.0,90264.0,0.05906]
[1765151706518,0.05696,90260.0,90259.0,0.0701382]
[1765151708321,0.0110776,90265.0,90259.0,0.0701382]
[1765151708520,0.13721025,90313.0,90285.0,0.05906]
[1765151708521,0.0002769,90286.0,90285.0,0.05906]
[1765151709221,0.0002769,90286.0,90284.0,0.0110752]
[1765151709222,0.05696,90285.0,90284.0,0.0110752]
[1765151709720,0.0680361,90277.0,90276.0,0.00016622]
[1765151709915,0.0002769,90286.0,90285.0,0.05906]
[1765151710116,0.0340469,90286.0,90285.0,0.05906]
[1765151710311,0.0632369,90286.0,90285.0,0.05906]
[1765151710511,0.0340469,90286.0,90285.0,0.05906]
[1765151710725,0.0002769,90286.0,90285.0,0.05906]
[1765151712328,0.0062769,90286.0,90285.0,0.05906]
[1765151712918,0.0062769,90286.0,90285.0,0.06606]
[1765151714027,0.14619499,90325.0,90324.0,0.05643]
[1765151714524,0.05574,90316.0,90315.0,0.06766752]
[1765151715122,0.09839538,90325.0,90315.0,0.06766752]
[1765151715328,0.10493769,90325.0,90324.0,0.05643]
[1765151715519,0.05574,90325.0,90324.0,0.02922]
[1765151716115,0.05574,90325.0,90324.0,0.05643]
[1765151716629,0.05574,90325.0,90324.0,0.05743]
[1765151717931,0.02755,90325.0,90324.0,0.05743]
[1765151718130,0.05574,90358.0,90357.0,0.05643]
[1765151718325,0.05574,90358.0,90357.0,0.02922]
[1765151718525,0.05574,90349.0,90348.0,0.00016601]
[1765151718929,0.05574,90349.0,90348.0,0.05659601]
[1765151719330,0.02755,90349.0,90348.0,0.05659601]
[1765151719631,0.17133214,90358.0,90357.0,0.05643]
[1765151719822,0.05574,90358.0,90357.0,0.05643]
[1765151721033,0.05574,90358.0,90357.0,0.02922]
[1765151721735,0.05574,90358.0,90357.0,0.05422]
[1765151721928,0.05574,90358.0,90357.0,0.08143]
[1765151722135,0.02755,90358.0,90357.0,0.08143]
[1765151722323,0.05574,90358.0,90357.0,0.08143]
[1765151722831,0.05601665,90366.0,90365.0,0.05643]
[1765151723031,0.00027665,90366.0,90365.0,0.05643]
[1765151723234,0.05601665,90366.0,90365.0,0.05643]
[1765151723837,0.00027665,90366.0,90365.0,0.05643]
[1765151724136,0.18928997,90378.0,90365.0,0.05643]
[1765151724327,0.0668019,90393.0,90379.0,0.0110636]
[1765151724521,0.05574,90380.0,90379.0,0.02922]
[1765151724730,0.05574,90374.0,90373.0,0.0674942]
[1765151725541,0.01749,90384.0,90382.0,0.05643]
[1765151725728,0.05574,90383.0,90382.0,0.05643]
[1765151725928,0.12467589,90392.0,90391.0,0.05643]
[1765151726137,0.05574,90384.0,90383.0,0.0674931]
[1765151726440,0.01749,90414.0,90378.0,0.01775]
[1765151726441,0.06893589,90393.0,90392.0,0.05643]
[1765151726637,0.05574,90393.0,90392.0,0.05643]
[1765151727333,0.05574,90384.0,90383.0,0.06765911]
[1765151727540,0.05574,90384.0,90383.0,0.05659601]
[1765151727742,0.05574,90384.0,90383.0,0.00016601]
[1765151728834,0.05574,90384.0,90383.0,0.07738601]
[1765151729642,0.05574,90384.0,90383.0,0.10459601]
[1765151729942,0.05574,90384.0,90383.0,0.04816601]
[1765151730342,0.05574,90384.0,90383.0,0.04716601]
[1765151731848,0.02819,90386.0,90385.0,0.0382728]
[1765151732145,0.05574,90386.0,90385.0,0.05643]
[1765151732639,0.02755,90386.0,90385.0,0.05643]
[1765151732845,0.05574,90395.0,90394.0,0.05643]
[1765151733139,0.05574,90395.0,90394.0,0.02922]
[1765151733535,0.05574,90395.0,90394.0,0.05643]
[1765151733734,0.02755,90395.0,90394.0,0.05643]
[1765151733943,0.02755,90389.0,90388.0,0.0402825]
[1765151734140,0.05574,90389.0,90388.0,0.0674925]
[1765151734344,0.05574,90386.0,90385.0,0.037]
[1765151734547,0.05574,90384.0,90383.0,0.00016601]
[1765151735242,0.05574,90386.0,90385.0,0.05643]
[1765151737243,0.05574,90386.0,90385.0,0.09443]
[1765151737445,0.02755,90386.0,90385.0,0.09443]
[1765151737642,0.12467589,90395.0,90394.0,0.05643]
[1765151737841,0.05574,90395.0,90394.0,0.05643]
[1765151738454,0.0110592,90415.0,90405.0,0.0677]
[1765151738638,0.05601653,90406.0,90405.0,0.05643]
[1765151739841,0.00027653,90406.0,90405.0,0.0677]
[1765151740246,0.00027653,90406.0,90405.0,0.0837604]
[1765151740448,0.00027653,90406.0,90405.0,0.0727]
[1765151740637,0.02782653,90406.0,90405.0,0.1147]
[1765151740948,0.05601653,90406.0,90405.0,0.10443]
[1765151741144,0.05601653,90406.0,90405.0,0.048]
[1765151743042,0.05601653,90406.0,90405.0,0.042]
[1765151743348,0.05601653,90406.0,90405.0,0.047]
[1765151743751,0.05601653,90406.0,90405.0,0.005]
[1765151743943,0.05601653,90406.0,90405.0,0.025]
[1765151744343,0.05601653,90406.0,90387.0,0.0093]
[1765151744344,0.01632,90405.0,90387.0,0.0093]
[1765151744542,0.01632,90405.0,90387.0,0.05627]
[1765151744543,0.05792,90388.0,90387.0,0.05627]
[1765151744747,0.05792,90388.0,90383.0,0.00016601]
[1765151744748,0.05792,90384.0,90383.0,0.02802601]
[1765151745246,0.05792,90384.0,90383.0,0.00016601]
[1765151745749,0.01632,90387.0,90360.0,0.01775]
[1765151745945,0.05792,90387.0,90386.0,0.05627]
[1765151746136,0.02922,90387.0,90386.0,0.05627]
[1765151746947,0.05792,90387.0,90386.0,0.05627]
[1765151747249,0.02922,90387.0,90386.0,0.05627]
[1765151747551,0.05792,90386.0,90385.0,0.0673327]
[1765151747743,0.1433409,90396.0,90395.0,0.05627]
[1765151748052,0.05808501,90396.0,90395.0,0.05627]
[1765151748646,0.00016501,90396.0,90395.0,0.05627]
[1765151749545,0.00016501,90396.0,90395.0,0.06227]
[1765151751146,0.00016501,90396.0,90395.0,0.10427]
[1765151752659,0.02938501,90396.0,90395.0,0.10427]
[1765151752951,0.00016501,90396.0,90395.0,0.10427]
[1765151753150,0.05808501,90396.0,90395.0,0.10427]
[1765151753654,0.07440501,90396.0,90395.0,0.10427]
[1765151754657,0.07440501,90396.0,90395.0,0.048]
[1765151755552,0.07424,90378.0,90374.0,0.0110642]
[1765151756057,0.07424,90378.0,90377.0,0.02802601]
[1765151756257,0.07424,90378.0,90377.0,0.05643601]
[1765151756658,0.07424,90378.0,90377.0,0.06243601]
[1765151757057,0.02754501,90396.0,90395.0,0.0673316]
[1765151757754,0.00016501,90396.0,90395.0,0.0673316]
[1765151758060,0.00016501,90396.0,90395.0,0.0723316]
[1765151758461,0.02754501,90396.0,90395.0,0.0723316]
[1765151758649,0.02754501,90396.0,90395.0,0.0983316]
[1765151759255,0.05590501,90396.0,90395.0,0.1013316]
[1765151759454,0.05590501,90396.0,90395.0,0.034]
[1765151760060,0.02754501,90396.0,90395.0,0.09027]
[1765151760259,0.00016501,90396.0,90395.0,0.09027]
[1765151760656,0.00027653,90406.0,90405.0,0.0673304]
[1765151760863,0.08620356,90423.0,90422.0,0.05627]
[1765151761155,0.02738,90423.0,90422.0,0.05627]
[1765151761366,0.08539589,90430.0,90415.0,0.0673291]
[1765151761367,0.02738,90416.0,90415.0,0.0673291]
[1765151762363,0.06274,90423.0,90422.0,0.05627]
[1765151762752,0.007,90423.0,90422.0,0.05627]
[1765151762952,0.0110575,90429.0,90421.0,0.0110584]
[1765151762953,0.05882356,90437.0,90436.0,0.05627]
[1765151763160,0.0667961,90441.0,90440.0,0.05627]
[1765151763360,0.05574,90428.0,90427.0,0.05643591]
[1765151763659,0.05574,90428.0,90427.0,0.00016591]
[1765151763859,0.0667965,90438.0,90437.0,0.05627]
[1765151765057,0.0667965,90438.0,90437.0,0.02878]
[1765151765360,0.05574,90432.0,90431.0,0.05627]
[1765151766163,0.05574,90428.0,90427.0,0.02894591]
[1765151766462,0.05574,90428.0,90427.0,0.05643591]
[1765151767058,0.05574,90428.0,90427.0,0.00016591]
[1765151767456,0.06074,90428.0,90427.0,0.00016591]
[1765151769756,0.06074,90428.0,90427.0,0.02894591]
[1765151770066,0.06074,90428.0,90427.0,0.05643591]
[1765151770565,0.005,90428.0,90427.0,0.05643591]
[1765151772158,0.005,90428.0,90427.0,0.06243591]
[1765151772865,0.0110563,90439.0,90427.0,0.00616591]
[1765151773058,0.0110563,90439.0,90427.0,0.02216591]
[1765151773258,0.0693367,90436.0,90435.0,0.02829]
[1765151773552,0.05828,90432.0,90431.0,0.0393472]
[1765151773758,0.05828,90428.0,90427.0,0.02216591]
[1765151773957,0.05828,90428.0,90427.0,0.00616591]
[1765151774264,0.0693372,90431.0,90430.0,0.05638]
[1765151774570,0.05828,90431.0,90430.0,0.05638]
[1765151774859,0.07999209,90440.0,90439.0,0.02809]
[1765151775059,0.0110562,90440.0,90439.0,0.05638]
[1765151775265,0.05828,90432.0,90431.0,0.0674372]
[1765151775657,0.09851589,90441.0,90440.0,0.05638]
[1765151775856,0.05828,90441.0,90440.0,0.05638]
[1765151776358,0.01133181,90446.0,90445.0,0.05638]
[1765151776359,0.00027641,90446.0,90445.0,0.05638]
[1765151777865,0.00027641,90446.0,90445.0,0.07038]
[1765151778063,0.00027641,90446.0,90445.0,0.07538]
[1765151778265,0.00027641,90446.0,90445.0,0.06138]
[1765151778465,0.00027641,90446.0,90445.0,0.07438]
[1765151778652,0.05855641,90446.0,90445.0,0.018]
[1765151779853,0.05855641,90446.0,90445.0,0.005]
[1765151780063,0.05828,90428.0,90427.0,0.00016591]
[1765151781568,0.05828,90428.0,90427.0,0.01616591]
[1765151781872,0.05828,90428.0,90427.0,0.02216591]
[1765151782364,0.05828,90428.0,90427.0,0.07854591]
[1765151782566,0.0693368,90435.0,90434.0,0.02829]
[1765151783868,0.05828,90435.0,90434.0,0.05638]
[1765151784171,0.0693363,90439.0,90438.0,0.05638]
[1765151784768,0.0110553,90447.0,90445.0,0.05638]
[1765151785074,0.11536633,90450.0,90437.0,0.0110564]
[1765151785075,0.0110555,90445.0,90437.0,0.0110564]
[1765151785365,0.05828,90435.0,90434.0,0.04629]
[1765151785563,0.05828,90435.0,90434.0,0.07438]
[1765151785866,0.05828,90435.0,90434.0,0.018]
[1765151786165,0.05828,90428.0,90427.0,0.02845591]
[1765151787465,0.05828,90428.0,90427.0,0.04445591]
[1765151787971,0.05828,90428.0,90427.0,0.04945591]
[1765151788271,0.05828,90428.0,90427.0,0.02116591]
[1765151792165,0.05828,90428.0,90427.0,0.04945591]
[1765151792776,0.05828,90428.0,90427.0,0.02116591]
[1765151797866,0.05828,90428.0,90427.0,0.00393915]
[1765151798973,0.05828,90419.0,90418.0,0.00016591]
[1765151799174,0.05828,90419.0,90418.0,0.02845591]
[1765151800466,0.05828,90419.0,90418.0,0.04245591]
[1765151801572,0.05828,90419.0,90418.0,0.04645591]
[1765151802380,0.05828,90419.0,90418.0,0.04245591]
[1765151802673,0.05828,90419.0,90418.0,0.03745591]
[1765151803676,0.05828,90419.0,90418.0,0.00916591]
[1765151805080,0.05828,90419.0,90418.0,0.00416591]
[1765151805279,0.01649,90416.0,90394.0,0.0686317]
[1765151805485,0.05667,90395.0,90394.0,0.0686317]
[1765151805670,0.05667,90395.0,90384.0,0.01629]
[1765151805671,0.05667,90391.0,90390.0,0.0407422]
[1765151805871,0.05667,90391.0,90390.0,0.0686322]
[1765151806569,0.05667,90391.0,90390.0,0.05757]
[1765151806876,0.05667,90386.0,90385.0,0.05757]
[1765151807079,0.05667,90394.0,90393.0,0.05757]
[1765151807277,0.05667,90394.0,90393.0,0.02968]
[1765151807969,0.0110619,90393.0,90381.0,0.00016591]
[1765151808176,0.05667,90382.0,90381.0,0.05773591]
[1765151808578,0.05667,90382.0,90381.0,0.00016591]
[1765151809479,0.01649,90387.0,90356.0,0.0110664]
[1765151809480,0.05667,90367.0,90356.0,0.0110664]
[1765151809684,0.05667,90367.0,90352.0,0.0110669]
[1765151809874,0.05667,90367.0,90341.0,0.03933557]
[1765151810070,0.05667,90367.0,90339.0,0.03946133]
[1765151810275,0.05667,90367.0,90339.0,0.00012576]
[1765151810475,0.05667,90367.0,90357.0,0.00016591]
[1765151810784,0.05667,90367.0,90366.0,0.02995665]
[1765151810978,0.05667,90367.0,90366.0,0.05784665]
[1765151811179,0.17220224,90376.0,90375.0,0.02968]
[1765151811379,0.05683591,90376.0,90375.0,0.02968]
[1765151811978,0.0110641,90375.0,90366.0,0.00027665]
[1765151812176,0.0677341,90375.0,90374.0,0.05757]
[1765151812577,0.05667,90375.0,90374.0,0.05757]
[1765151813690,0.05667,90367.0,90366.0,0.06891175]
[1765151813984,0.05667,90367.0,90366.0,0.05784665]
[1765151815081,0.05767,90367.0,90366.0,0.05784665]
[1765151815485,0.05767,90367.0,90366.0,0.00327665]
[1765151816581,0.05667,90358.0,90357.0,0.00016591]
[1765151817590,0.05667,90358.0,90357.0,0.00516591]
[1765151817888,0.05667,90358.0,90357.0,0.00816591]
[1765151818689,0.06167,90358.0,90357.0,0.00016591]
[1765151818895,0.07367,90358.0,90357.0,0.00016591]
[1765151819387,0.08467,90358.0,90357.0,0.00016591]
[1765151819988,0.07967,90358.0,90357.0,0.00016591]
[1765151820188,0.029,90358.0,90357.0,0.05541591]
[1765151820789,0.01947007,90358.0,90357.0,0.45541591]
[1765151820991,1e-08,90358.0,90357.0,0.45541591]
[1765151821193,0.12642983,90380.0,90375.0,0.05525]
[1765151821395,0.0110639,90377.0,90375.0,0.05525]
[1765151821592,0.05450591,90376.0,90375.0,0.05525]
[1765151822081,0.05450591,90376.0,90375.0,0.02778]
[1765151822287,0.05434,90371.0,90370.0,0.02778]
[1765151822582,0.05434,90359.0,90358.0,0.0110661]
[1765151822793,0.0654062,90358.0,90357.0,0.00416591]
[1765151823099,0.0654062,90358.0,90357.0,0.00016591]
[1765151823295,0.0654062,90358.0,90357.0,0.00516591]
[1765151824088,0.0654062,90358.0,90357.0,0.00016591]
[1765151824286,0.0654077,90345.0,90331.0,0.0110695]
[1765151824598,0.0654077,90345.0,90326.0,0.01134678]
[1765151825195,0.0654077,90345.0,90335.0,0.00016601]
[1765151825387,0.05434,90345.0,90344.0,0.09905705]
[1765151825593,0.0654073,90349.0,90348.0,0.05525]
[1765151825994,0.0654073,90349.0,90348.0,0.02778]
[1765151826303,0.05434,90345.0,90344.0,0.04380705]
[1765151826497,0.06034,90345.0,90344.0,0.04380705]
[1765151827300,0.05434,90345.0,90344.0,0.04380705]
[1765151828202,0.06534,90345.0,90344.0,0.04380705]
[1765151828703,0.06134,90345.0,90344.0,0.04380705]
[1765151828903,0.06534,90345.0,90344.0,0.04380705]
[1765151829499,0.05834,90345.0,90344.0,0.04380705]
[1765151829690,0.06434,90345.0,90344.0,0.04380705]
[1765151830090,0.06434,90345.0,90344.0,0.09905705]
[1765151831105,0.05834,90345.0,90344.0,0.09905705]
[1765151831307,0.06434,90345.0,90344.0,0.09905705]
[1765151831603,0.06434,90345.0,90344.0,0.04380705]
[1765151831805,0.06034,90345.0,90344.0,0.04380705]
[1765151835697,0.06034,90345.0,90344.0,0.07233705]
[1765151836093,0.06034,90345.0,90344.0,0.09948705]
[1765151836298,0.006,90345.0,90344.0,0.09948705]
[1765151836701,0.06231,90345.0,90344.0,0.09948705]
[1765151843211,0.006,90345.0,90344.0,0.09948705]
[1765151843407,0.03358,90345.0,90344.0,0.09948705]
[1765151843611,0.06231,90345.0,90344.0,0.09948705]
[1765151843812,0.03358,90345.0,90344.0,0.09948705]
[1765151845719,0.06231,90345.0,90344.0,0.09948705]
[1765151847712,0.006,90345.0,90344.0,0.09948705]
[1765151848622,0.006,90345.0,90344.0,0.11653705]
[1765151850912,0.03358,90345.0,90344.0,0.11653705]
[1765151851112,0.06231,90345.0,90344.0,0.11653705]
[1765151852305,0.06231,90345.0,90344.0,0.09948705]
[1765151853210,0.006,90345.0,90344.0,0.11653705]
[1765151855221,0.03358,90345.0,90344.0,0.11653705]
[1765151855519,0.06231,90345.0,90344.0,0.09948705]
[1765151855721,0.0733777,90345.0,90344.0,0.05568]
[1765151858020,0.06231,90345.0,90344.0,0.05568]
[1765151860324,0.23671808,90397.0,90372.0,0.0110644]
[1765151860522,0.01744,90400.0,90396.0,0.0110615]
[1765151860822,0.04502,90400.0,90398.0,0.05030944]
[1765151861026,0.07375,90400.0,90399.0,0.03924814]
[1765151861226,0.05631,90399.0,90398.0,0.0110613]
[1765151861613,0.05631,90399.0,90398.0,0.04037279]
[1765151862228,0.05631,90399.0,90398.0,0.0110613]
[1765151862524,0.05631,90399.0,90398.0,0.0320613]
[1765151863716,0.05631,90399.0,90398.0,0.0370613]
[1765151865014,0.00027653,90406.0,90405.0,0.0166804]
[1765151865221,0.06895695,90430.0,90423.0,0.0166782]
[1765151865427,0.07928,90424.0,90423.0,0.0166782]
[1765151865728,0.07928,90424.0,90423.0,0.0138682]
[1765151867526,0.08028,90424.0,90423.0,0.0110582]
[1765151871024,0.001,90424.0,90423.0,0.0166782]
[1765151872822,0.06284,90424.0,90423.0,0.0110582]
[1765151873219,0.06284,90424.0,90423.0,0.0138682]
[1765151873429,0.06284,90424.0,90423.0,0.0166782]
[1765151873629,0.001,90424.0,90423.0,0.0166782]
[1765151875637,0.06284,90424.0,90423.0,0.0166782]
[1765151876235,0.001,90424.0,90423.0,0.0166782]
[1765151877237,0.06284,90424.0,90423.0,0.0166782]
[1765151878529,0.001,90424.0,90423.0,0.0166782]
[1765151879129,0.02998,90424.0,90423.0,0.0166782]
[1765151879938,0.001,90424.0,90423.0,0.0166782]
[1765151880535,0.02998,90424.0,90423.0,0.0166782]
[1765151881944,0.06668,90424.0,90423.0,0.0166782]
[1765151883232,0.07247641,90446.0,90445.0,0.0219555]
[1765151884043,0.07247641,90446.0,90445.0,0.0110555]
[1765151884740,0.07247641,90446.0,90445.0,0.0150555]
[1765151885141,0.07247641,90446.0,90445.0,0.0340555]
[1765151886548,0.07247641,90446.0,90445.0,0.0395055]
[1765151886842,0.07247641,90446.0,90445.0,0.0449555]
[1765151887236,0.07247641,90446.0,90445.0,0.0340555]
[1765151887640,0.07247641,90446.0,90445.0,0.0300555]
[1765151887943,0.07247641,90446.0,90445.0,0.0340555]
[1765151888335,0.07247641,90446.0,90445.0,0.0259555]
[1765151888536,0.07247641,90446.0,90445.0,0.0449555]
[1765151889046,0.07247641,90446.0,90445.0,0.0395055]
[1765151889339,0.07247641,90446.0,90445.0,0.06412051]
[1765151889744,0.07247641,90446.0,90445.0,0.023]
[1765151889942,0.07247641,90446.0,90445.0,0.03407778]
[1765151890245,0.07247641,90446.0,90445.0,0.05307778]
[1765151890936,0.0722,90443.0,90442.0,0.02931149]
[1765151891334,0.0722,90443.0,90438.0,0.03924814]
[1765151891538,0.0722,90439.0,90438.0,0.03924814]
[1765151892245,0.0682,90439.0,90438.0,0.03924814]
[1765151892448,0.0682,90439.0,90438.0,0.12225454]
[1765151892648,0.0682,90439.0,90438.0,0.0830064]
[1765151892848,0.07134,90437.0,90436.0,0.00016591]
[1765151893743,0.07134,90437.0,90436.0,0.07211591]
[1765151894146,0.07134,90437.0,90436.0,0.13081511]
[1765151894545,0.07134,90437.0,90436.0,0.13481511]
[1765151894840,0.07134,90437.0,90436.0,0.14181511]
[1765151895143,0.07134,90437.0,90436.0,0.08311591]
[1765151896149,0.03444641,90446.0,90445.0,0.07195]
[1765151896344,0.07161641,90446.0,90445.0,0.07195]
[1765151896938,0.07161641,90446.0,90445.0,0.11111726]
[1765151897139,0.07161641,90446.0,90445.0,0.07195]
[1765151897338,0.07161641,90446.0,90445.0,0.07595]
[1765151897539,0.07161641,90446.0,90445.0,0.03882]
[1765151897748,0.07161641,90446.0,90445.0,0.08199145]
[1765151898238,0.07161641,90446.0,90445.0,0.07995]
[1765151899940,0.07161641,90446.0,90445.0,0.1387015]
[1765151900139,0.07161641,90446.0,90445.0,0.07995]
[1765151901044,0.07161641,90446.0,90445.0,0.06678708]
[1765151901247,0.07161641,90446.0,90445.0,0.008]
[1765151903149,0.07161641,90446.0,90445.0,0.03809273]
[1765151903547,0.08267181,90446.0,90445.0,0.03809273]
[1765151909654,0.08267181,90446.0,90445.0,0.07729366]
[1765151910049,0.08267181,90446.0,90445.0,0.06749683]
[1765151910752,0.08267181,90446.0,90445.0,0.03809273]
[1765151916854,0.08267181,90446.0,90445.0,0.02854377]
[1765151917055,0.0823965,90437.0,90436.0,1e-08]
[1765151917961,0.07134,90435.0,90434.0,4.8e-06]
[1765151919861,0.07534,90435.0,90434.0,4.8e-06]
[1765151920464,0.09934,90435.0,90434.0,4.8e-06]
[1765151928163,0.06217,90435.0,90434.0,0.0737448]
[1765151928477,0.06543,90435.0,90434.0,0.0737448]
[1765151928759,0.10114,90435.0,90434.0,0.0737448]
[1765151929358,0.07514,90435.0,90434.0,0.0737448]
[1765151929554,0.08914,90435.0,90434.0,0.0737448]
[1765151929965,0.07614,90435.0,90434.0,0.0737448]
[1765151931376,0.07414,90435.0,90434.0,0.10329093]
[1765151931566,0.07314,90435.0,90434.0,0.10529093]
[1765151931761,0.07414,90435.0,90434.0,0.10529093]
[1765151932261,0.07414,90435.0,90434.0,0.10329093]
[1765151932567,0.07414,90435.0,90434.0,0.10529093]
[1765151933760,0.00027641,90446.0,90445.0,0.07374]
[1765151933968,0.02245,90482.0,90445.0,0.07374]
[1765151933969,0.05969421,90467.0,90454.0,0.1040044]
[1765151934167,0.1153599,90470.0,90454.0,0.13354144]
[1765151934363,0.09559,90475.0,90474.0,0.084792]
[1765151934666,0.07314,90475.0,90474.0,0.084792]
[1765151934866,0.09559,90482.0,90481.0,0.07374]
[1765151935667,0.09559,90482.0,90475.0,0.0110518]
[1765151935869,0.03743,90476.0,90475.0,0.0847918]
[1765151936072,0.02245,90482.0,90472.0,0.00016582]
[1765151936073,0.13559,90482.0,90481.0,0.0857911]
[1765151937266,0.13559,90482.0,90481.0,0.07474]
[1765151937571,0.12759,90482.0,90481.0,0.001]
[1765151938270,0.032,90482.0,90481.0,0.0857911]
[1765151938471,0.037,90482.0,90481.0,0.11520066]
[1765151939373,0.02143485,90482.0,90481.0,0.0857911]
[1765151939962,0.02143485,90482.0,90481.0,0.11521603]
[1765151940368,0.02143485,90482.0,90481.0,0.0887911]
[1765151940369,0.01643485,90482.0,90481.0,0.0887911]
[1765151940568,0.01643485,90482.0,90481.0,0.51821309]
[1765151940772,0.00027629,90486.0,90485.0,0.0847906]
[1765151941570,0.03770629,90486.0,90485.0,0.0847906]
[1765151941772,0.00027629,90486.0,90485.0,0.0847906]
[1765151942078,0.00027629,90486.0,90485.0,0.0867906]
[1765151942469,0.00027629,90486.0,90485.0,0.0997906]
[1765151944972,0.07558629,90486.0,90485.0,0.0997906]
[1765151945980,0.07558629,90486.0,90485.0,0.015]
[1765151946387,0.07558629,90486.0,90485.0,0.002]
[1765151946583,0.07558629,90486.0,90485.0,0.015]
[1765151946781,0.07558629,90486.0,90485.0,0.017]
[1765151947083,0.07558629,90486.0,90485.0,0.016]
[1765151947474,0.07858629,90486.0,90485.0,0.014]
[1765151948176,0.06241044,90486.0,90485.0,0.00554127]
[1765151948372,0.06841044,90486.0,90485.0,0.00554127]
[1765151948978,0.07531,90473.0,90472.0,0.08405802]
[1765151949269,0.07531,90473.0,90472.0,0.07300582]
[1765151950479,0.07531,90473.0,90472.0,0.08100582]
[1765151951083,0.07531,90473.0,90472.0,0.08300582]
[1765151951780,0.07531,90473.0,90472.0,0.09500582]
[1765151954581,0.0892512,90481.0,90480.0,0.07871]
[1765151955383,0.03866,90485.0,90481.0,0.0110511]
[1765151955583,0.03866,90485.0,90484.0,0.07871]
[1765151955584,0.0782,90485.0,90484.0,0.07871]
[1765151957292,0.0782,90485.0,90484.0,0.08071]
[1765151958083,0.0782,90485.0,90484.0,0.09771]
[1765151958285,0.0221,90512.0,90490.0,0.07871]
[1765151958490,0.1153599,90500.0,90490.0,0.07871]
[1765151958895,0.07836559,90491.0,90490.0,0.07871]
[1765151959580,0.04202499,90518.0,90490.0,0.07871]
[1765151959782,0.04202499,90518.0,90517.0,0.07871]
[1765151959986,0.08068499,90518.0,90517.0,0.07871]
[1765151960893,0.12022499,90518.0,90517.0,0.07871]
[1765151961288,0.04202499,90518.0,90517.0,0.07871]
[1765151961987,0.1374599,90540.0,90525.0,0.0780657]
[1765151962495,0.1153599,90535.0,90525.0,0.0780657]
[1765151962688,0.07847617,90526.0,90525.0,0.0780657]
[1765151963091,0.00027617,90526.0,90525.0,0.0780657]
[1765151963891,0.07847617,90526.0,90525.0,0.06702]
[1765151964688,0.03893617,90526.0,90525.0,0.06702]
[1765151965090,0.00027617,90526.0,90525.0,0.06702]
[1765151966095,0.07847617,90526.0,90525.0,0.06702]
[1765151967195,0.0782,90525.0,90524.0,0.0110458]
[1765151967395,0.00027617,90526.0,90525.0,0.06702]
[1765151969203,0.07847617,90526.0,90525.0,0.03351]
[1765151969399,0.07847617,90526.0,90525.0,0.06702]
[1765151970604,0.03954,90518.0,90517.0,0.0780667]
[1765151970898,0.0782,90518.0,90517.0,0.10692451]
[1765151971100,0.0782,90518.0,90517.0,0.02885781]
[1765151971298,0.1003,90513.0,90512.0,0.0110473]
[1765151971503,0.1003,90513.0,90512.0,0.03990827]
[1765151971904,0.1003,90513.0,90512.0,0.02886097]
[1765151972203,0.1003,90513.0,90508.0,0.00016571]
[1765151972204,0.0782,90509.0,90508.0,0.00016571]
[1765151976299,0.0782,90509.0,90490.0,0.02919505]
[1765151976500,0.1073387,90500.0,90499.0,0.0780689]
[1765151976703,0.03866,90500.0,90499.0,0.0780689]
[1765151977598,0.03866,90500.0,90499.0,0.0850689]
[1765151977801,0.0782,90500.0,90499.0,0.0850689]
[1765151978208,0.03866,90500.0,90499.0,0.0850689]
[1765151978506,0.1003,90504.0,90503.0,0.0780684]
[1765151979301,0.03866,90504.0,90503.0,0.0780684]
[1765151979607,0.07836537,90509.0,90508.0,0.0780678]
[1765151980299,0.07836537,90509.0,90508.0,0.0445578]
[1765151980501,0.1003,90504.0,90503.0,0.06702]
[1765151980701,0.1003,90504.0,90503.0,0.03351]
[1765151980901,0.03866,90495.0,90494.0,0.09619026]
[1765151981303,0.03866,90495.0,90494.0,0.06702]
[1765151981809,0.07928,90482.0,90481.0,0.03920093]
[1765151982004,0.07928,90482.0,90478.0,0.0110514]
[1765151982005,0.02211,90477.0,90474.0,0.07586]